fUST/lending_fUST_20250219
["ID","MTS","AMOUNT","RATE_DAILY","PERIOD"]
[353578190,1739933438688,-121060.803515,0.0001799,2]
[353578191,1739933438700,-76625.5541949,0.0001799,2]
[353578192,1739933438713,-201.35264226,0.00017999,2]
[353578193,1739933438724,-160.0,0.00017999,2]
[353578194,1739933438735,-160.0,0.00017999,2]
[353578195,1739933438747,-160.0,0.00017999,2]
[353578196,1739933438759,-150.0,0.00017999,2]
[353578197,1739933438769,-1971.0,0.00017999,2]
[353578198,1739933438780,-538.0,0.00017999,2]
[353578199,1739933438791,-2290.0,0.00017999,2]
[353578200,1739933438802,-91799.35956171,0.00018,5]
[353578201,1739933438813,-20215.65977639,0.00018,5]
[353578202,1739933438824,-252824.75761922,0.00018,15]
[353578203,1739933438839,-1576.5082169,0.00018,15]
[353578522,1739933443501,-1643.0,0.000167,2]
[353578524,1739933443513,-209.46377222,0.00017819,2]
[353578526,1739933443525,-58.87622778,0.00017999,2]
[353581472,1739934056792,206.939718,9.041e-05,2]
[353581474,1739934347100,-452.67,0.00010849,2]
[353581475,1739934347120,-452.67,0.00010959,2]
[353581476,1739934347142,-194.0251376,0.00013463,2]
[353581477,1739934437133,-200.61658176,0.00013195,2]
[353581478,1739934437155,-200.61658176,0.00013328,2]
[353581479,1739934437178,-272.12983143,0.00013599,2]
[353581480,1739934441088,-5610.21183191,0.00013599,2]
[353581481,1739934446086,-2328.04004792,0.00013599,2]
[353581482,1739934452138,-568.24457831,0.00013463,2]
[353581483,1739934452160,-197.13525473,0.00013599,2]
[353581484,1739934452181,-160.709334,0.00013699,2]
[353581485,1739934452202,-649.20642607,0.00013987,2]
[353581486,1739934452223,-300.0,0.00013987,2]
[353581487,1739934452244,-649.20642607,0.00013988,2]
[353581488,1739934452266,-649.20642607,0.00013989,2]
[353581489,1739934452287,-420.0,0.00015324,2]
[353581490,1739934452308,-43.28434128,0.00015473,2]
[353581496,1739934632714,-177.278352,0.00013699,2]
[353581498,1739934632724,-107.71565872,0.00015473,2]
[353581500,1739934632734,-206.939718,0.00015775,2]
[353581502,1739934632743,-321.041576,0.00015984,2]
[353581503,1739934632753,-2587.2404066,0.0001679,2]
[353581504,1739934632765,-462.228,0.0001679,2]
[353581505,1739934632776,-672.36454897,0.0001679,2]
[353581506,1739934632788,-3716.86457721,0.0001679,2]
[353581508,1739934632798,-300.0,0.00017102,2]
[353581510,1739934632808,-1971.0,0.00017104,2]
[353581512,1739934632818,-538.0,0.00017104,2]
[353581514,1739934632828,-2290.0,0.00017104,2]
[353581516,1739934632837,-176.57778107,0.00017515,2]
[353581518,1739934632847,-308.51858372,0.00017611,2]
[353581520,1739934632856,-500.0,0.00017611,2]
[353581522,1739934632866,-500.0,0.00017611,2]
[353581524,1739934632876,-522.650736,0.00017612,2]
[353581526,1739934632885,-502.76177391,0.00017612,2]
[353581528,1739934632894,-578.84449711,0.00017612,2]
[353581529,1739934632904,-500.0,0.00017612,2]
[353581530,1739934632913,-500.0,0.00017612,2]
[353581531,1739934632923,-502.75489594,0.00017612,2]
[353581532,1739934632932,-500.0,0.00017612,2]
[353581533,1739934632941,-503.6061895,0.00017612,2]
[353581534,1739934632950,-502.14193036,0.00017612,2]
[353581535,1739934632960,-329.98863693,0.00017612,2]
[353581536,1739934632969,-504.49748366,0.00017612,2]
[353581537,1739934632979,-491.25506019,0.00017612,2]
[353581538,1739934632988,-506.2768421,0.00017612,2]
[353581539,1739934632998,-201.66456376,0.00017612,2]
[353581540,1739934633008,-500.320337,0.00017613,2]
[353581541,1739934633018,-502.42974656,0.00017613,2]
[353581542,1739934633027,-501.02718166,0.00017613,2]
[353581543,1739934633037,-501.06363834,0.00017613,2]
[353581544,1739934633047,-500.88169017,0.00017613,2]
[353581545,1739934633057,-501.66801828,0.00017613,2]
[353581546,1739934633066,-501.61000431,0.00017613,2]
[353581547,1739934633076,-187.957,0.00017613,2]
[353581548,1739934633086,-501.83553534,0.00017613,2]
[353581549,1739934633095,-500.0,0.00017613,2]
[353581550,1739934633105,-500.50190578,0.00017613,2]
[353581551,1739934633116,-501.31283253,0.00017613,2]
[353581552,1739934633126,-59.54750948,0.00017613,2]
[353581594,1739934638549,-807.53249052,0.00017613,2]
[353581596,1739934638559,-69.40741958,0.00017613,2]
[353581600,1739934638603,-430.9926689,0.00017613,2]
[353581601,1739934638612,-514.0181736,0.00017613,2]
[353581602,1739934638622,-500.45433858,0.00017613,2]
[353581603,1739934638632,-500.0,0.00017614,2]
[353581604,1739934638641,-398.7504854,0.00017614,2]
[353581605,1739934638651,-504.9690969,0.00017615,2]
[353581606,1739934638661,-445.68690983,0.00017615,2]
[353581607,1739934638671,-501.52709678,0.00017615,2]
[353581608,1739934638681,-501.60996562,0.00017615,2]
[353581609,1739934638690,-500.0,0.00017615,2]
[353581610,1739934638700,-502.27021404,0.00017615,2]
[353581611,1739934638711,-502.70698347,0.00017615,2]
[353581613,1739934638721,-502.78787082,0.00017615,2]
[353581614,1739934638730,-501.45983264,0.00017615,2]
[353581615,1739934638739,-2000.0,0.00017622,30]
[353581616,1739934638749,-527.8,0.00017622,30]
[353581617,1739934638758,-188.2223778,0.00017639,2]
[353581618,1739934638767,-176.57778107,0.00017643,2]
[353581619,1739934638776,-500.0,0.00017693,2]
[353581620,1739934638786,-190.67,0.00017694,2]
[353581621,1739934638796,-500.0,0.00017694,2]
[353581622,1739934638805,-503.846676,0.00017694,2]
[353581623,1739934638814,-867.08,0.00017695,2]
[353581624,1739934638824,-161.16516598,0.00017696,2]
[353581625,1739934638833,-503.7363813,0.00017697,2]
[353581626,1739934638843,-396.0,0.00017747,2]
[353581627,1739934638853,-176.57778107,0.00017772,2]
[353581628,1739934638862,-369.30672303,0.00017776,2]
[353581629,1739934638871,-500.0,0.00017776,2]
[353581630,1739934638881,-867.08,0.00017778,2]
[353581631,1739934638890,-500.0,0.00017859,2]
[353581632,1739934638900,-867.08,0.0001786,2]
[353581633,1739934638909,-3000.0,0.000179,2]
[353581634,1739934638919,-3586.75961643,0.000179,2]
[353581635,1739934638928,-176.57778107,0.000179,2]
[353581636,1739934638938,-198.55028545,0.000179,2]
[353581637,1739934638948,-198.55,0.000179,2]
[353581638,1739934638958,-154.4279998,0.000179,2]
[353581639,1739934638968,-154.4279998,0.000179,2]
[353581640,1739934638977,-154.4279998,0.000179,2]
[353581641,1739934638987,-154.4279998,0.000179,2]
[353581642,1739934638998,-154.4279998,0.000179,2]
[353581643,1739934639008,-154.42,0.000179,2]
[353581644,1739934639017,-500.0,0.00017941,2]
[353581645,1739934639027,-867.08,0.00017942,2]
[353581646,1739934639036,-592.26714703,0.00017969,2]
[353581647,1739934639046,-40705.1515452,0.0001797,2]
[353581648,1739934639055,-11788.5467992,0.0001797,2]
[353581649,1739934639064,-500.0,0.00017973,2]
[353581650,1739934639074,-500.0,0.00017973,2]
[353581651,1739934639084,-500.0,0.00017973,2]
[353581652,1739934639093,-20352.5757726,0.0001798,2]
[353581653,1739934639102,-5894.27339961,0.0001798,2]
[353581654,1739934639111,-40705.1515452,0.0001798,2]
[353581655,1739934639120,-11788.5467992,0.0001798,2]
[353581656,1739934639129,-500.0,0.00017989,2]
[353581657,1739934639139,-61057.7273177,0.0001799,2]
[353581658,1739934639148,-17682.8201988,0.0001799,2]
[353581659,1739934639157,-101762.878863,0.0001799,2]
[353581660,1739934639167,-70731.2807953,0.0001799,2]
[353581661,1739934639176,-201.35264226,0.00017998,2]
[353581662,1739934639186,-160.0,0.00017999,2]
[353581663,1739934639198,-160.0,0.00017999,2]
[353581664,1739934639207,-160.0,0.00017999,2]
[353581665,1739934639216,-160.36398534,0.00017999,2]
[353581666,1739934639226,-150.0,0.00017999,2]
[353581667,1739934639235,-150.0,0.00017999,2]
[353581668,1739934639244,-105941.04265965,0.00018,5]
[353581669,1739934639253,-25693.13742674,0.00018,5]
[353581670,1739934639262,-210951.54621895,0.00018,15]
[353581671,1739934639275,-4698.1062349,0.00018,15]
[353581672,1739934639287,-2662.00490808,0.00018,15]
[353581707,1739934641208,-9752.78381582,0.00018,15]
[353581757,1739934644319,-167.79386855,0.00017998,2]
[353581758,1739934644329,-530.12663934,0.00018,15]
[353581760,1739934644340,-22249.02845572,0.00018,15]
[353583294,1739935197500,186.245746,9.041e-05,2]
[353583297,1739935631178,-711.3,0.00010849,2]
[353583298,1739935631201,-261.13082831,0.00010959,2]
[353583299,1739935631223,-472.93969872,0.00010959,2]
[353583300,1739935636110,-238.36030128,0.00010959,2]
[353583301,1739935636132,-500.0,0.00014164,2]
[353583302,1739935636155,-151.0,0.00015166,2]
[353583303,1739935636176,-151.0,0.00015473,2]
[353583304,1739935636198,-186.245746,0.00015775,2]
[353583305,1739935636220,-636.9940973,0.00016136,2]
[353583306,1739935636241,-526.1048162,0.00016261,2]
[353583307,1739935636263,-300.0,0.00016298,2]
[353583308,1739935636291,-9345.1246205,0.00016299,2]
[353583309,1739935636314,-187.023742,0.00016347,2]
[353583310,1739935636334,-187.023742,0.00016401,2]
[353583311,1739935636357,-187.023742,0.00016456,2]
[353583312,1739935636379,-187.023742,0.0001651,2]
[353583313,1739935636401,-532.818683,0.00016563,2]
[353583314,1739935636423,-6861.50006811,0.00016621,2]
[353583315,1739935638071,-577.19746467,0.00016621,2]
[353583316,1739935638096,-108.64407902,0.00017509,2]
[353583317,1739935642082,-67.93370205,0.00017509,2]
[353583318,1739935642106,-500.0,0.00017609,2]
[353583319,1739935642128,-500.0,0.00017609,2]
[353583320,1739935642154,-354.40749097,0.00017609,2]
[353583321,1739935642175,-510.37368427,0.00017609,2]
[353583322,1739935642197,-500.0,0.00017609,2]
[353583323,1739935642218,-500.0,0.00017609,2]
[353583324,1739935642243,-500.0,0.00017609,2]
[353583325,1739935642267,-284.17065732,0.00017609,2]
[353583326,1739935648121,-215.82934268,0.00017609,2]
[353583327,1739935648143,-459.07793013,0.00017609,2]
[353583335,1739935751100,-322.26632299,0.00010959,2]
[353583336,1739935751139,-7.32367701,0.00010959,2]
[353583337,1739935767087,-161.408503,0.00013699,2]
[353583338,1739935767109,-300.0,0.00014498,2]
[353583339,1739935767131,-53763.9043192,0.00014499,2]
[353583361,1739935831860,-204.58,0.00014199,2]
[353583362,1739935831870,-314.0,0.00014199,2]
[353583363,1739935831882,-314.0,0.00014199,2]
[353583364,1739935831891,-259.34794291,0.00014199,2]
[353583365,1739935831901,-300.0,0.00014498,2]
[353583366,1739935831911,-8264.379922,0.00014499,2]
[353583371,1739935837794,-701.79999157,0.00014499,2]
[353583372,1739935837806,-1891.69764888,0.00014499,2]
[353583373,1739935837819,-151.0,0.00015473,2]
[353583374,1739935837829,-265.0,0.00015875,2]
[353583375,1739935837839,-463.534374,0.00016519,2]
[353583376,1739935837848,-161.408503,0.00017123,2]
[353583377,1739935837857,-242.89760755,0.00017259,2]
[353583378,1739935837868,-242.89760755,0.00017433,2]
[353583379,1739935837882,-500.0,0.0001761,2]
[353583380,1739935837891,-500.0,0.0001761,2]
[353583381,1739935837901,-500.0,0.0001761,2]
[353583382,1739935837912,-500.0,0.0001761,2]
[353583384,1739935837921,-315.30700353,0.0001761,2]
[353583385,1739935837931,-500.0,0.00017611,2]
[353583386,1739935837940,-500.0,0.00017611,2]
[353583387,1739935837952,-722.56,0.00017612,2]
[353583388,1739935837962,-81.02746827,0.00017612,2]
[353583389,1739935837973,-420.27762552,0.00017612,2]
[353583390,1739935837983,-500.60570922,0.00017612,2]
[353583391,1739935837993,-500.0,0.00017612,2]
[353583392,1739935838002,-502.6935749,0.00017612,2]
[353583393,1739935838013,-502.19702483,0.00017612,2]
[353583394,1739935838022,-500.0,0.00017612,2]
[353583395,1739935838031,-503.44425236,0.00017612,2]
[353583396,1739935838040,-203.917016,0.00017612,2]
[353583397,1739935838050,-500.4899259,0.00017612,2]
[353583398,1739935838059,-620.06865791,0.00017612,2]
[353583399,1739935838071,-288.56680216,0.00017612,2]
[353583400,1739935838081,-500.0,0.00017612,2]
[353583401,1739935838091,-452.03076667,0.00017612,2]
[353583402,1739935838100,-500.0,0.00017612,2]
[353583403,1739935838110,-500.0,0.00017612,2]
[353583404,1739935838119,-452.70840822,0.00017612,2]
[353583405,1739935838130,-500.0,0.00017612,2]
[353583406,1739935838140,-226.04030275,0.00017612,2]
[353583407,1739935838149,-500.0,0.00017612,2]
[353583408,1739935838159,-500.0,0.00017612,2]
[353583409,1739935838168,-500.0,0.00017612,2]
[353583410,1739935838178,-500.0,0.00017612,2]
[353583411,1739935838187,-500.0,0.00017612,2]
[353583412,1739935838197,-500.0,0.00017612,2]
[353583413,1739935838207,-500.0,0.00017612,2]
[353583414,1739935838217,-500.0,0.00017612,2]
[353583415,1739935838227,-500.0,0.00017612,2]
[353583416,1739935838236,-489.70105582,0.00017612,2]
[353583417,1739935838245,-500.0,0.00017612,2]
[353583418,1739935838254,-500.0,0.00017612,2]
[353583419,1739935838263,-500.0,0.00017612,2]
[353583420,1739935838273,-500.0,0.00017614,2]
[353583421,1739935838283,-500.0,0.00017614,2]
[353583422,1739935838292,-500.0,0.00017614,2]
[353583423,1739935838303,-500.0,0.00017614,2]
[353583424,1739935838311,-500.0,0.00017614,2]
[353583425,1739935838323,-500.0,0.00017614,2]
[353583426,1739935838332,-182.09319782,0.00017614,2]
[353583427,1739935838342,-500.0,0.00017614,2]
[353583428,1739935838352,-500.0,0.00017614,2]
[353583429,1739935838361,-500.0,0.00017614,2]
[353583430,1739935838371,-500.0,0.00017614,2]
[353583431,1739935838380,-500.0,0.00017614,2]
[353583432,1739935838390,-500.0,0.00017614,2]
[353583433,1739935838399,-500.0,0.00017614,2]
[353583434,1739935838408,-2000.0,0.00017628,30]
[353583435,1739935838418,-1155.8,0.00017628,30]
[353583436,1739935838428,-201.36115489,0.00017692,2]
[353583437,1739935838438,-500.0,0.00017692,2]
[353583438,1739935838447,-500.0,0.00017693,2]
[353583439,1739935838457,-150.365,0.00017693,2]
[353583440,1739935838466,-500.0,0.00017693,2]
[353583441,1739935838476,-500.0,0.00017693,2]
[353583442,1739935838485,-722.56,0.00017694,2]
[353583443,1739935838495,-500.0,0.00017696,2]
[353583444,1739935838504,-500.0,0.00017696,2]
[353583445,1739935838514,-500.0,0.00017696,2]
[353583446,1739935838523,-500.0,0.00017696,2]
[353583447,1739935838533,-500.0,0.00017696,2]
[353583448,1739935838542,-500.0,0.00017696,2]
[353583449,1739935838552,-500.0,0.00017696,2]
[353583450,1739935838561,-500.0,0.00017696,2]
[353583451,1739935838572,-500.0,0.00017696,2]
[353583452,1739935838581,-500.0,0.00017696,2]
[353583453,1739935838591,-550.60367483,0.00017696,2]
[353583454,1739935838600,-472.07159402,0.00017696,2]
[353583455,1739935838610,-500.0,0.00017775,2]
[353583456,1739935838619,-500.0,0.00017775,2]
[353583457,1739935838629,-722.56,0.00017776,2]
[353583458,1739935838638,-500.0,0.00017776,2]
[353583459,1739935838647,-500.0,0.00017776,2]
[353583460,1739935838656,-500.0,0.00017779,2]
[353583461,1739935838665,-500.0,0.00017779,2]
[353583462,1739935838675,-500.0,0.00017779,2]
[353583463,1739935838685,-500.0,0.00017779,2]
[353583464,1739935838695,-500.0,0.00017779,2]
[353583465,1739935838704,-500.0,0.00017779,2]
[353583466,1739935838713,-500.0,0.00017779,2]
[353583467,1739935838722,-500.0,0.00017779,2]
[353583468,1739935838731,-500.0,0.00017779,2]
[353583469,1739935838741,-500.0,0.00017779,2]
[353583470,1739935838751,-577.83376116,0.00017822,2]
[353583471,1739935838761,-347.3337172,0.00017829,2]
[353583472,1739935838771,-500.0,0.00017856,2]
[353583473,1739935838780,-507.48694895,0.00017857,2]
[353583474,1739935838790,-500.0,0.00017857,2]
[353583475,1739935838799,-208.02,0.00017857,2]
[353583476,1739935838809,-500.0,0.00017857,2]
[353583477,1739935838819,-504.41319185,0.00017857,2]
[353583478,1739935838828,-500.0,0.00017857,2]
[353583479,1739935838837,-500.0,0.00017858,2]
[353583480,1739935838847,-500.0,0.00017858,2]
[353583481,1739935838856,-722.56,0.00017859,2]
[353583482,1739935838866,-500.0,0.00017861,2]
[353583483,1739935838889,-500.0,0.00017861,2]
[353583484,1739935838899,-500.0,0.00017861,2]
[353583485,1739935838909,-500.0,0.00017861,2]
[353583486,1739935838919,-596.78804839,0.00017861,2]
[353583487,1739935838929,-500.0,0.00017861,2]
[353583488,1739935838939,-500.0,0.00017861,2]
[353583489,1739935838949,-500.0,0.00017861,2]
[353583490,1739935838961,-500.0,0.00017861,2]
[353583491,1739935838971,-500.0,0.00017861,2]
[353583492,1739935838981,-155.0392502,0.0001789,2]
[353583493,1739935838990,-3249.99999733,0.000179,2]
[353583494,1739935838999,-3000.0,0.000179,2]
[353583495,1739935839009,-3586.75961643,0.000179,2]
[353583496,1739935839018,-198.55028545,0.000179,2]
[353583497,1739935839028,-198.55,0.000179,2]
[353583498,1739935839037,-154.4279998,0.000179,2]
[353583499,1739935839047,-154.4279998,0.000179,2]
[353583500,1739935839057,-154.4279998,0.000179,2]
[353583501,1739935839068,-154.4279998,0.000179,2]
[353583502,1739935839079,-154.4279998,0.000179,2]
[353583503,1739935839089,-154.42,0.000179,2]
[353583504,1739935839099,-500.0,0.00017939,2]
[353583505,1739935839109,-500.0,0.0001794,2]
[353583506,1739935839118,-500.0,0.0001794,2]
[353583507,1739935839130,-500.0,0.0001794,2]
[353583508,1739935839139,-722.56,0.00017941,2]
[353583509,1739935839150,-500.0,0.00017943,2]
[353583510,1739935839160,-500.0,0.00017943,2]
[353583511,1739935839170,-500.0,0.00017943,2]
[353583512,1739935839180,-501.04671559,0.00017943,2]
[353583513,1739935839190,-500.0,0.00017943,2]
[353583514,1739935839200,-500.0,0.00017943,2]
[353583515,1739935839209,-500.0,0.00017943,2]
[353583516,1739935839218,-500.0,0.00017943,2]
[353583517,1739935839227,-500.0,0.00017943,2]
[353583518,1739935839237,-500.0,0.00017972,2]
[353583519,1739935839247,-500.0,0.00017973,2]
[353583520,1739935839257,-275.18741632,0.00017973,2]
[353583521,1739935839266,-500.0,0.00017973,2]
[353583522,1739935839277,-500.0,0.00017973,2]
[353583523,1739935839286,-500.0,0.00017973,2]
[353583524,1739935839296,-518.11318105,0.00017973,2]
[353583525,1739935839306,-181.4895934,0.00017979,2]
[353583526,1739935839317,-500.0,0.00017979,2]
[353583527,1739935839326,-6800.03600547,0.0001798,2]
[353583528,1739935839335,-27200.1440219,0.0001798,2]
[353583529,1739935839346,-500.0,0.00017989,2]
[353583530,1739935839355,-6800.03600547,0.00017989,2]
[353583531,1739935839365,-63608.121859,0.0001799,2]
[353583532,1739935839375,-20400.1080164,0.0001799,2]
[353583533,1739935839385,-190824.365577,0.0001799,2]
[353583534,1739935839394,-173.3869975,0.00017998,2]
[353583535,1739935839405,-160.0,0.00017999,2]
[353583537,1739935839415,-160.0,0.00017999,2]
[353583539,1739935839424,-160.0,0.00017999,2]
[353583541,1739935839434,-160.0,0.00017999,2]
[353583543,1739935839444,-150.0,0.00017999,2]
[353583545,1739935839453,-538.0,0.00017999,2]
[353583546,1739935839463,-1971.0,0.00017999,2]
[353583547,1739935839473,-2290.0,0.00017999,2]
[353583548,1739935839482,-396.0,0.00017999,2]
[353583549,1739935839492,-112834.54424054,0.00018,5]
[353583550,1739935839501,-29801.24566451,0.00018,5]
[353583551,1739935839511,-202412.1849438,0.00018,15]
[353583552,1739935839526,-15596.49747926,0.00018,15]
[353583553,1739935839537,-106754.72092712,0.00018,15]
[353583556,1739935840118,-500.0,0.0001761,2]
[353583557,1739935840128,-54967.25816416,0.00018,15]
[353583607,1739935845735,-165.76685024,0.0001782,2]
[353583608,1739935845745,-77263.92861239,0.00018,15]
[353583609,1739935845758,-1860.0,0.00018,15]
[353583610,1739935845847,-14517.49584456,0.00018,15]
[353583612,1739936224173,195.308467,9.041e-05,2]
[353583615,1739936737122,-159.55569363,0.00013698,4]
[353583616,1739936737143,-215.61903467,0.00014232,2]
[353583617,1739936737164,-261.35581269,0.00014376,2]
[353583618,1739936737189,-300.0,0.0001452,2]
[353583619,1739936737210,-352.08930377,0.00014521,2]
[353583621,1739936830077,-995.97513347,0.00014232,2]
[353583622,1739936831102,-171.24655314,0.00014232,2]
[353583623,1739936831125,-504.8679575,0.00014376,2]
[353583624,1739936834089,-7454.34141394,0.00014376,2]
[353583625,1739936836090,-646.70984795,0.00014376,2]
[353583626,1739936836111,-308.30148248,0.00014521,2]
[353583627,1739936839084,-551.11902156,0.00014521,2]
[353583628,1739936851123,-200.0,0.000142,5]
[353583629,1739936851144,-200.0,0.000142,5]
[353583630,1739936851164,-8798.49019219,0.00014521,2]
[353583631,1739936851184,-197.56344082,0.00014621,2]
[353583632,1739936851204,-195.921,0.00014621,2]
[353583633,1739936851228,-800.47156,0.00014668,2]
[353583634,1739936851250,-500.0,0.0001472,2]
[353583635,1739936851272,-387.74456176,0.0001472,2]
[353583636,1739936851293,-1395.77434792,0.00014721,2]
[353583641,1739936984382,-176.239687,0.00013699,2]
[353583642,1739936984407,-500.0,0.00014667,2]
[353583643,1739936984433,-500.0,0.00014667,2]
[353583644,1739936984458,-6042.92318486,0.00014721,2]
[353583645,1739936984483,-500.0,0.00014749,2]
[353583646,1739936984507,-500.0,0.00014749,2]
[353583649,1739937002531,-776.0,0.00014776,2]
[353583737,1739937037823,-369.4720855,0.00014454,2]
[353583738,1739937037833,-369.4720855,0.000146,2]
[353583739,1739937037843,-6662.69753278,0.00014628,2]
[353583740,1739937037853,-500.0,0.00014667,2]
[353583741,1739937037862,-500.0,0.00014749,2]
[353583742,1739937037872,-738.93854365,0.00014776,2]
[353583744,1739937037883,-5923.75898913,0.00014776,2]
[353583746,1739937037892,-500.0,0.00014832,2]
[353583748,1739937037902,-431.70700037,0.00014832,2]
[353583750,1739937037913,-500.0,0.00014832,2]
[353583752,1739937037922,-500.0,0.00014914,2]
[353583754,1739937037931,-500.0,0.00014914,2]
[353583756,1739937037941,-500.0,0.00014996,2]
[353583758,1739937037951,-470.94476909,0.00014996,2]
[353583786,1739937038482,-29.05523091,0.00014996,2]
[353583787,1739937038493,-500.0,0.00015078,2]
[353583788,1739937038503,-500.0,0.00015078,2]
[353583789,1739937038513,-316.89325227,0.0001516,2]
[353583790,1739937038522,-500.0,0.0001516,2]
[353583791,1739937038532,-500.0,0.00015243,2]
[353583792,1739937038542,-500.0,0.00015325,2]
[353583793,1739937038552,-500.0,0.00015407,2]
[353583794,1739937038561,-152.0,0.00015458,2]
[353583795,1739937038571,-151.0,0.00015473,2]
[353583796,1739937038580,-507.48694895,0.00015491,2]
[353583797,1739937038589,-500.0,0.00015491,2]
[353583798,1739937038600,-404.91359938,0.00015491,2]
[353583799,1739937038610,-331.09786974,0.00015491,2]
[353583800,1739937038619,-500.0,0.00015491,2]
[353583801,1739937038629,-500.0,0.00015491,2]
[353583802,1739937038638,-250.11793083,0.00015491,2]
[353583803,1739937038647,-596.78804839,0.00015491,2]
[353583804,1739937038656,-500.0,0.00015491,2]
[353583805,1739937038666,-500.0,0.00015491,2]
[353583806,1739937038675,-500.0,0.00015491,2]
[353583807,1739937038685,-500.0,0.00015491,2]
[353583808,1739937038695,-543.57,0.00015491,2]
[353583809,1739937038704,-1048.73969845,0.00015492,2]
[353583810,1739937038720,-500.0,0.00015489,2]
[353583811,1739937038730,-3195.35391715,0.00015492,2]
[353583812,1739937038739,-500.0,0.00015573,2]
[353583813,1739937038748,-500.0,0.00015573,2]
[353583814,1739937038757,-501.04671559,0.00015573,2]
[353583815,1739937038767,-500.0,0.00015573,2]
[353583816,1739937038776,-500.0,0.00015573,2]
[353583817,1739937038786,-500.0,0.00015573,2]
[353583818,1739937038795,-500.0,0.00015573,2]
[353583819,1739937038805,-543.57,0.00015573,2]
[353583820,1739937038814,-500.0,0.00015656,2]
[353583821,1739937038824,-500.0,0.00015656,2]
[353583822,1739937038833,-500.0,0.00015656,2]
[353583823,1739937038842,-500.0,0.00015656,2]
[353583824,1739937038852,-500.0,0.00015656,2]
[353583825,1739937038861,-500.0,0.00015656,2]
[353583826,1739937038873,-543.57,0.00015656,2]
[353583827,1739937038882,-500.0,0.00015738,2]
[353583828,1739937038892,-500.0,0.00015738,2]
[353583829,1739937038901,-212.67583544,0.00015738,2]
[353583830,1739937038911,-168.02248043,0.00015738,2]
[353583831,1739937038920,-500.0,0.00015738,2]
[353583832,1739937038929,-500.0,0.00015738,2]
[353583833,1739937038939,-543.57,0.00015738,2]
[353583834,1739937038948,-500.0,0.00015738,2]
[353583835,1739937038958,-195.308467,0.00015775,2]
[353583836,1739937038967,-500.0,0.0001582,2]
[353583837,1739937038977,-500.0,0.0001582,2]
[353583838,1739937038986,-500.0,0.0001582,2]
[353583839,1739937038996,-500.0,0.0001582,2]
[353583840,1739937039005,-543.57,0.0001582,2]
[353583841,1739937039014,-500.0,0.00015902,2]
[353583842,1739937039024,-500.0,0.00015902,2]
[353583843,1739937039034,-500.0,0.00015902,2]
[353583844,1739937039043,-500.0,0.00015902,2]
[353583845,1739937039053,-543.57,0.00015902,2]
[353583846,1739937039063,-500.0,0.00015984,2]
[353583847,1739937039073,-540.26902174,0.00015984,2]
[353583848,1739937039083,-499.18164271,0.00015984,2]
[353583849,1739937039092,-500.0,0.00015984,2]
[353583850,1739937039102,-543.57,0.00015984,2]
[353583851,1739937039112,-500.0,0.00016012,2]
[353583852,1739937039125,-500.0,0.00016067,2]
[353583853,1739937039135,-543.57,0.00016067,2]
[353583854,1739937039145,-500.0,0.00016149,2]
[353583855,1739937039155,-543.57,0.00016149,2]
[353583856,1739937039165,-502.92828678,0.00016199,2]
[353583857,1739937039175,-502.98690681,0.00016199,2]
[353583858,1739937039184,-509.75999932,0.00016199,2]
[353583859,1739937039194,-503.13910038,0.00016199,2]
[353583860,1739937039203,-500.0,0.00016199,2]